fUST/lending_fUST_20250810
["ID","MTS","AMOUNT","RATE_DAILY","PERIOD"]
[378322732,1754825448559,-151.0,0.00022129,2]
[378322734,1754825448568,-500.0,0.00022129,2]
[378322736,1754825448578,-151.0,0.00022129,2]
[378322738,1754825448587,-500.0,0.00022129,2]
[378322740,1754825448596,-151.0,0.00022129,2]
[378322742,1754825448606,-151.0,0.00022129,2]
[378322744,1754825448615,-205.01,0.00022157,2]
[378322746,1754825448624,-520.53,0.00024449,2]
[378322748,1754825448633,-7996.20710882,0.0002465,2]
[378322773,1754825448869,-130.70673929,0.0002465,2]
[378322810,1754825449222,-130031.40467868,0.0002465,2]
[378322812,1754825449231,-503.90254019,0.0002465,2]
[378322814,1754825449241,-500.0,0.00024657,2]
[378322816,1754825449250,-500.0,0.00024657,2]
[378322818,1754825449259,-500.0,0.00024657,2]
[378322820,1754825449268,-500.0,0.00024657,2]
[378322822,1754825449277,-500.0,0.00024657,2]
[378322824,1754825449286,-416.81222836,0.00024657,2]
[378322826,1754825449295,-4856.98,0.00024657,4]
[378322828,1754825449304,-1000.0,0.00024658,2]
[378322830,1754825449313,-1000.0,0.00024658,2]
[378322832,1754825449322,-574.94161269,0.00024658,2]
[378322834,1754825449331,-380.0,0.00024658,2]
[378322836,1754825449340,-500.0,0.00024658,2]
[378322837,1754825449351,-500.0,0.00024658,2]
[378322839,1754825449360,-500.0,0.00024658,2]
[378322841,1754825449372,-215.96703224,0.00024658,2]
[378322843,1754825449381,-500.0,0.00024658,2]
[378322845,1754825449390,-393.0,0.00024674,2]
[378322847,1754825449399,-393.0,0.00024703,2]
[378322849,1754825449408,-3600.0,0.00024712,2]
[378322851,1754825449417,-2411.13,0.00024722,2]
[378322853,1754825449427,-522.04,0.00024722,2]
[378322855,1754825449436,-460.0,0.00024723,2]
[378322858,1754825449453,-476.85,0.00024723,2]
[378322860,1754825449465,-274.68592906,0.00024723,2]
[378322862,1754825449474,-2087.41,0.00024723,2]
[378322864,1754825449483,-520.53,0.00024723,2]
[378322866,1754825449496,-1098.4795583,0.00024774,2]
[378322868,1754825449506,-12705.20357888,0.00024796,2]
[378322870,1754825449515,-1034.72707155,0.00024797,2]
[378322872,1754825449525,-172.00826619,0.000248,2]
[378322874,1754825449534,-2206.67318517,0.000248,2]
[378322876,1754825449543,-3502.60161591,0.000248,2]
[378322878,1754825449552,-308.663711,0.00024806,7]
[378322880,1754825449561,-308.663711,0.00024806,7]
[378322882,1754825449570,-151.0,0.00024806,7]
[378322884,1754825449580,-2000.0,0.00024877,2]
[378322886,1754825449589,-2000.0,0.00024877,2]
[378322888,1754825449599,-2000.0,0.00024877,2]
[378322890,1754825449608,-389.41291503,0.0002488,2]
[378322892,1754825449618,-308.663711,0.00024885,7]
[378322894,1754825449627,-308.663711,0.00024885,7]
[378322896,1754825449637,-151.0,0.00024885,7]
[378322913,1754825449781,-140167.02923583,0.0002489,2]
[378322915,1754825449793,-460.0,0.00024896,2]
[378322917,1754825449803,-731.64,0.00024897,2]
[378322919,1754825449812,-896.6,0.00024897,2]
[378322921,1754825449821,-2537.65,0.00024897,2]
[378322923,1754825449831,-1003.15,0.00024897,2]
[378322925,1754825449840,-460.0,0.00024897,2]
[378322927,1754825449849,-460.0,0.00024897,2]
[378322929,1754825449859,-464.59,0.00024897,2]
[378322931,1754825449868,-460.0,0.00024897,2]
[378322933,1754825449878,-900.83,0.00024897,2]
[378322935,1754825449888,-308.663711,0.000249,7]
[378322937,1754825449897,-308.663711,0.000249,7]
[378322939,1754825449906,-151.0,0.000249,7]
[378322941,1754825449915,-151.0,0.000249,7]
[378322943,1754825449927,-151.844864,0.000249,7]
[378322945,1754825449936,-151.0,0.000249,7]
[378322947,1754825449945,-301.663825,0.000249,7]
[378322949,1754825449955,-151.0,0.000249,7]
[378322951,1754825449964,-151.0,0.000249,7]
[378322953,1754825449973,-151.0,0.000249,7]
[378322955,1754825449984,-151.0,0.000249,7]
[378322957,1754825449993,-151.0,0.000249,7]
[378322959,1754825450003,-151.0,0.000249,7]
[378322961,1754825450012,-333.694264,0.000249,7]
[378322963,1754825450022,-333.694264,0.000249,7]
[378322966,1754825450038,-152.286322,0.000249,7]
[378322968,1754825450048,-8024.00771853,0.000249,7]
[378322970,1754825450057,-843.0869304,0.000249,7]
[378322972,1754825450066,-151.0,0.000249,7]
[378322974,1754825450076,-151.0,0.000249,7]
[378322976,1754825450084,-312.16666667,0.000249,7]
[378322978,1754825450095,-527.86640923,0.000249,7]
[378322980,1754825450104,-151.0,0.000249,7]
[378322981,1754825450113,-231.96268195,0.000249,7]
[378322982,1754825450123,-239.825955,0.000249,7]
[378322983,1754825450132,-461.62346162,0.000249,7]
[378322984,1754825450141,-152897.41177617,0.000249,2]
[378324707,1754825496020,788.4,0.00030137,120]
[378324708,1754825537822,-4661.15654592,0.000199,2]
[378324709,1754825537845,-473.35,0.00019999,2]
[378324710,1754825564081,113.49345408,0.00019999,2]
[378324711,1754825610244,-346.50654592,0.00019999,2]
[378324712,1754825610266,-460.0,0.00019999,2]
[378324713,1754825610288,-460.0,0.00020273,2]
[378324714,1754825614964,200.0,0.0002172,15]
[378324715,1754825615768,300.0,0.0002172,15]
[378324716,1754825640365,628.839,0.00030136,120]
[378324717,1754825660465,53.49345408,0.00019999,2]
[378324718,1754825678611,-3105.2954499,0.00019662,2]
[378324719,1754825678633,-406.50654592,0.00019999,2]
[378324720,1754825678654,-460.0,0.00020273,2]
[378324721,1754825678828,137.19800418,0.000199,2]
[378324724,1754825749544,-3259.0,0.000199,2]
[378324725,1754825762384,217.73,0.00020678,10]
[378324726,1754825772749,181.44,0.00020678,10]
[378324727,1754825783134,151.2,0.00020678,10]
[378324728,1754825793779,756.01,0.00020678,10]
[378324738,1754825887800,-4439.78296491,0.000199,2]
[378324739,1754825887822,-1200.0,0.00019998,2]
[378324740,1754825887844,-300.0,0.00019998,2]
[378324741,1754825887865,-20210.46093527,0.00019999,2]
[378324742,1754825887887,-460.0,0.00019999,2]
[378324743,1754825887908,-460.0,0.00019999,2]
[378324744,1754825887930,-510.54,0.00019999,2]
[378324745,1754825887951,-460.0,0.00019999,2]
[378324746,1754825887973,-496.53,0.00019999,2]
[378324747,1754825887996,-1149.99,0.00019999,2]
[378324748,1754825888017,-460.0,0.00019999,2]
[378324749,1754825888038,-460.0,0.00019999,2]
[378324750,1754825888059,-482.87,0.00019999,2]
[378324751,1754825888080,-503.78,0.00019999,2]
[378324752,1754825888101,-460.0,0.00019999,2]
[378324753,1754825888121,-460.0,0.00019999,2]
[378324754,1754825888141,-460.0,0.00019999,2]
[378324755,1754825888161,-460.0,0.00019999,2]
[378324756,1754825888181,-460.0,0.00019999,2]
[378324757,1754825888202,-256.57428679,0.00019999,2]
[378324758,1754825888223,-460.0,0.00019999,2]
[378324759,1754825888244,-460.0,0.00019999,2]
[378324760,1754825888266,-460.0,0.00019999,2]
[378324761,1754825888287,-460.0,0.00019999,2]
[378324762,1754825888308,-566.37,0.00019999,2]
[378324763,1754825888335,-460.0,0.00019999,2]
[378324764,1754825888355,-460.0,0.00019999,2]
[378324765,1754825888377,-460.0,0.00019999,2]
[378324766,1754825888398,-459.10181303,0.00019999,2]
[378324769,1754825915487,200.0,0.00020998,15]
[378324770,1754825916132,300.0,0.00020998,15]
[378324778,1754826132800,521.21044972,0.00019311,2]
[378324779,1754826132822,20000.0,0.00019311,2]
[378324780,1754826132846,4378.78955028,0.00019311,2]
[378324781,1754826142195,5000.0,0.00019451,2]
[378324782,1754826157446,5000.0,0.00019451,2]
[378324783,1754826172916,5000.0,0.00019451,2]
[378324785,1754826215149,200.0,0.00020894,15]
[378324786,1754826215919,300.0,0.00020894,15]
[378324796,1754826399125,-434.369095,0.00019478,2]
[378324797,1754826399150,-557.8988534,0.00019657,2]
[378324798,1754826399179,-4442.72717917,0.000199,2]
[378324799,1754826399205,-300.0,0.00019996,2]
[378324800,1754826399230,-300.0,0.00019997,2]
[378324801,1754826399257,-300.0,0.00019997,2]
[378324802,1754826399282,-300.0,0.00019997,2]
[378324803,1754826399309,-376.84874632,0.00019998,2]
[378324805,1754826433472,288.531099,0.00013699,2]
[378324809,1754826502347,332.67935072,0.000189,2]
[378324810,1754826502368,638.64351572,0.000189,2]
[378324811,1754826515303,200.0,0.00020997,15]
[378324812,1754826516062,300.0,0.00020997,15]
[378324819,1754826612332,5000.0,0.00019451,2]
[378324820,1754826628438,2972.65438966,0.00019451,2]
[378324879,1754826632244,-180.010374,0.00019465,2]
[378324880,1754826632254,-4166.07847278,0.000199,2]
[378324883,1754826632296,-128.55780035,0.000199,2]
[378324884,1754826632306,-300.0,0.00019997,2]
[378324886,1754826632315,-460.0,0.00019998,2]
[378324888,1754826632324,-460.0,0.00019998,2]
[378324890,1754826632334,-460.0,0.00019998,2]
[378324892,1754826632343,-460.0,0.00019998,2]
[378324894,1754826632353,-625.12,0.00019998,2]
[378324896,1754826632362,-460.0,0.00019998,2]
[378324898,1754826632371,-460.0,0.00019998,2]
[378324900,1754826632381,-460.0,0.00019998,2]
[378324902,1754826632391,-1226.98,0.00019998,2]
[378324904,1754826632400,-460.0,0.00019998,2]
[378324906,1754826632411,-460.0,0.00019998,2]
[378324908,1754826632421,-460.0,0.00019998,2]
[378324910,1754826632430,-460.0,0.00019998,2]
[378324912,1754826632439,-460.0,0.00019999,2]
[378324914,1754826632449,-460.0,0.00019999,2]
[378324916,1754826632459,-460.0,0.00019999,2]
[378324918,1754826632470,-460.0,0.00019999,2]
[378324920,1754826632480,-460.0,0.00019999,2]
[378324922,1754826632491,-460.0,0.00019999,2]
[378324924,1754826632500,-460.0,0.00019999,2]
[378324926,1754826632510,-460.0,0.00019999,2]
[378324929,1754826632519,-460.0,0.00019999,2]
[378324931,1754826632529,-460.0,0.00019999,2]
[378324933,1754826632538,-460.0,0.00019999,2]
[378324935,1754826632547,-460.0,0.00019999,2]
[378324936,1754826632556,-460.0,0.00019999,2]
[378324938,1754826632566,-460.0,0.00019999,2]
[378324941,1754826632575,-443.32437254,0.00019999,2]
[378324943,1754826632589,-16.67562746,0.00019999,2]
[378324945,1754826632599,-460.0,0.00019999,2]
[378324947,1754826632608,-223.11457961,0.00019999,2]
[378324949,1754826632622,-236.88542039,0.00019999,2]
[378324951,1754826632631,-460.0,0.00019999,2]
[378324953,1754826632642,-460.0,0.00019999,2]
[378324955,1754826632652,-460.0,0.00019999,2]
[378324957,1754826632661,-460.0,0.00019999,2]
[378324959,1754826632671,-462.81789658,0.00019999,2]
[378324961,1754826632679,-460.0,0.00019999,2]
[378324963,1754826632691,-460.0,0.00019999,2]
[378324965,1754826632700,-460.0,0.00019999,2]
[378324967,1754826632710,-595.24,0.00019999,2]
[378324969,1754826632719,-500.0,0.00019999,2]
[378324971,1754826632729,-460.0,0.00019999,2]
[378324973,1754826632739,-460.0,0.00019999,2]
[378324975,1754826632749,-460.0,0.00019999,2]
[378324977,1754826632758,-460.0,0.00019999,2]
[378324979,1754826632767,-466.54347167,0.00019999,2]
[378324981,1754826632777,-460.0,0.00019999,2]
[378324982,1754826632786,-460.0,0.00019999,2]
[378324983,1754826632795,-460.0,0.00019999,2]
[378324984,1754826632806,-345.88560102,0.00019999,2]
[378324985,1754826632823,-110.13900153,0.00019999,2]
[378324986,1754826632832,-353.52476645,0.00019999,2]
[378325384,1754826638059,-460.0,0.00019998,2]
[378325385,1754826638069,-110.94307759,0.00019999,2]
[378325386,1754826638078,-460.0,0.00019999,2]
[378325387,1754826638088,-288.531099,0.00020187,2]
[378325388,1754826638097,-625.12,0.00020272,2]
[378325389,1754826638108,-1226.98,0.00020272,2]
[378325390,1754826638117,-460.0,0.00020272,2]
[378325391,1754826638126,-460.0,0.00020272,2]
[378325392,1754826638136,-460.0,0.00020272,2]
[378325393,1754826638145,-444.44,0.00020273,2]
[378325395,1754826638154,-542.22,0.00020273,2]
[378325397,1754826638164,-460.0,0.00020273,2]
[378325399,1754826638173,-460.0,0.00020273,2]
[378325401,1754826638182,-460.0,0.00020273,2]
[378325403,1754826638192,-460.0,0.00020273,2]
[378325404,1754826638202,-460.0,0.00020273,2]
[378325405,1754826638211,-1016.99558472,0.00020509,2]
[378325406,1754826638220,-625.12,0.00020546,2]
[378325407,1754826638230,-1226.98,0.00020546,2]
[378325408,1754826638239,-460.0,0.00020546,2]
[378325409,1754826638249,-460.0,0.00020546,2]
[378325410,1754826638259,-460.0,0.00020546,2]
[378325411,1754826638270,-398.47,0.00020547,2]
[378325412,1754826638280,-349.06,0.00020547,2]
[378325413,1754826638290,-500.0,0.00020673,2]
[378325415,1754826638300,-503.10533898,0.00020673,2]
[378325417,1754826638310,-500.0,0.00020673,2]
[378325419,1754826638320,-732.45,0.00020677,2]
[378325421,1754826638330,-788.2,0.00020677,2]
[378325423,1754826638339,-460.0,0.00020677,2]
[378325425,1754826638349,-1441.87,0.00020678,3]
[378325427,1754826638358,-720.93,0.00020678,3]
[378325429,1754826638368,-360.47,0.00020678,3]
[378325431,1754826638377,-180.23,0.00020678,3]
[378325432,1754826638386,-540.74,0.00020678,3]
[378325434,1754826638395,-501.1014939,0.00020685,2]
[378325436,1754826638405,-500.0,0.00020685,2]
[378325438,1754826638414,-500.0,0.00020685,2]
[378325440,1754826638423,-500.0,0.00020685,2]
[378325442,1754826638433,-500.0,0.00020685,2]
[378325444,1754826638442,-500.0,0.00020685,2]
[378325446,1754826638452,-500.0,0.00020685,2]
[378325448,1754826638462,-500.0,0.00020685,2]
[378325450,1754826638471,-500.0,0.00020685,2]
[378325452,1754826638480,-402.52530693,0.00020685,2]
[378325454,1754826638489,-500.0,0.00020685,2]
[378325456,1754826638499,-397.05776469,0.00020685,2]
[378325458,1754826638508,-369.00617401,0.00020685,2]
[378325460,1754826638518,-232.91648385,0.00020685,2]
[378325462,1754826638527,-460.0,0.00020686,2]
[378325464,1754826638537,-484.81876432,0.00020686,2]
[378325466,1754826638546,-460.0,0.00020686,2]
[378325469,1754826638556,-460.0,0.00020686,2]
[378325471,1754826638566,-473.34825963,0.00020686,2]
[378325472,1754826638575,-460.0,0.00020686,2]
[378325474,1754826638584,-460.0,0.00020686,2]
[378325476,1754826638594,-460.0,0.00020686,2]
[378325478,1754826638604,-460.0,0.00020686,2]
[378325482,1754826638626,-540.2,0.00020686,2]
[378325484,1754826638638,-460.0,0.00020686,2]
[378325486,1754826638648,-460.0,0.00020686,2]
[378325488,1754826638659,-460.0,0.00020686,2]
[378325490,1754826638670,-460.0,0.00020686,2]
[378325492,1754826638680,-460.0,0.00020686,2]
[378325494,1754826638691,-460.0,0.00020686,2]
[378325517,1754826638909,-460.0,0.00020686,2]
[378325519,1754826638919,-460.0,0.00020686,2]
[378325521,1754826638928,-285.96,0.00020686,2]
[378325523,1754826638938,-460.0,0.00020686,2]
[378325542,1754826639110,-460.0,0.00020686,2]
[378325544,1754826639122,-460.0,0.00020686,2]
[378325546,1754826639132,-460.0,0.00020686,2]
[378325548,1754826639141,-460.0,0.00020686,2]
[378325550,1754826639151,-460.0,0.00020686,2]
[378325552,1754826639160,-460.0,0.00020686,2]
[378325554,1754826639169,-460.37,0.00020686,2]
[378325556,1754826639179,-460.0,0.00020686,2]
[378325558,1754826639188,-460.0,0.00020686,2]
[378325560,1754826639197,-517.12253678,0.00020686,2]
[378325562,1754826639207,-460.0,0.00020686,2]
[378325564,1754826639216,-460.0,0.00020686,2]
[378325566,1754826639225,-154.17782494,0.00020687,2]
[378325568,1754826639235,-500.0,0.00020687,2]
[378325570,1754826639244,-500.0,0.00020687,2]
[378325572,1754826639254,-500.0,0.00020687,2]
[378325574,1754826639264,-500.0,0.00020687,2]
[378325576,1754826639273,-500.0,0.00020687,2]
[378325578,1754826639283,-500.0,0.00020687,2]
[378325580,1754826639292,-500.0,0.00020687,2]
[378325582,1754826639301,-500.0,0.00020687,2]
[378325584,1754826639311,-500.0,0.00020687,2]
[378325587,1754826639320,-500.0,0.00020687,2]
[378325589,1754826639330,-500.0,0.00020687,2]
[378325591,1754826639340,-500.0,0.00020687,2]
[378325593,1754826639350,-500.0,0.00020687,2]
[378325595,1754826639360,-500.0,0.00020687,2]
[378325597,1754826639370,-500.0,0.00020687,2]
[378325599,1754826639380,-500.0,0.00020687,2]
[378325602,1754826639393,-601.69027635,0.00020687,2]
[378325604,1754826639403,-500.0,0.00020687,2]
[378325606,1754826639414,-500.0,0.00020687,2]
[378325608,1754826639423,-500.0,0.00020687,2]
[378325610,1754826639432,-500.0,0.00020687,2]
[378325612,1754826639441,-500.0,0.00020687,2]
[378325614,1754826639452,-500.0,0.00020687,2]
[378325617,1754826639462,-500.0,0.00020687,2]
[378325619,1754826639471,-450.0,0.00020687,2]
[378325621,1754826639482,-370000.0,0.00020688,2]
[378325623,1754826639492,-500.0,0.00020786,2]
[378325625,1754826639501,-569.4,0.00020786,2]
[378325627,1754826639511,-460.0,0.00020786,2]
[378325629,1754826639520,-460.0,0.00020786,2]
[378325631,1754826639530,-460.0,0.00020787,2]
[378325633,1754826639541,-460.0,0.00020787,2]
[378325635,1754826639551,-460.0,0.00020787,2]
[378325637,1754826639560,-460.0,0.00020787,2]
[378325639,1754826639570,-303.43736457,0.00020787,2]
[378325641,1754826639580,-460.0,0.00020787,2]
[378325643,1754826639589,-460.0,0.00020787,2]
[378325645,1754826639599,-460.0,0.00020787,2]
[378325647,1754826639613,-460.0,0.00020787,2]
[378325649,1754826639625,-460.0,0.00020787,2]
[378325651,1754826639636,-460.0,0.00020787,2]
[378325653,1754826639646,-1527.07,0.00020787,2]
[378325655,1754826639657,-460.0,0.00020787,2]
[378325657,1754826639668,-460.0,0.00020787,2]
[378325658,1754826639678,-460.0,0.00020787,2]
[378325660,1754826639688,-460.0,0.00020787,2]
[378325663,1754826639699,-674.71,0.00020787,2]
[378325665,1754826639708,-625.12,0.0002082,2]
[378325667,1754826639717,-1226.98,0.0002082,2]
[378325669,1754826639726,-460.0,0.0002082,2]
[378325670,1754826639736,-460.0,0.0002082,2]
[378325671,1754826639746,-460.0,0.00020884,2]
[378325672,1754826639755,-460.0,0.00020884,2]
[378325673,1754826639765,-617.43,0.00020886,2]
[378325674,1754826639775,-460.0,0.00020887,2]
[378325675,1754826639784,-460.0,0.00020887,2]
[378325676,1754826639794,-460.0,0.00020887,2]
[378325677,1754826639804,-460.0,0.00020887,2]
[378325678,1754826639813,-956.73,0.00020887,2]
[378325679,1754826639823,-460.0,0.00020887,2]
[378325680,1754826639833,-460.0,0.00020887,2]
[378325681,1754826639842,-732.45,0.00020951,2]
[378325682,1754826639853,-788.2,0.00020951,2]
[378325683,1754826639863,-460.0,0.0002096,2]
[378325684,1754826639873,-540.2,0.0002096,2]
[378325685,1754826639883,-460.0,0.0002096,2]
[378325686,1754826639893,-460.0,0.0002096,2]
[378325687,1754826639903,-460.0,0.0002096,2]
[378325688,1754826639913,-460.0,0.0002096,2]
[378325689,1754826639922,-460.0,0.0002096,2]
[378325690,1754826639932,-460.0,0.0002096,2]
[378325691,1754826639942,-460.37,0.0002096,2]
[378325692,1754826639955,-460.0,0.0002096,2]
[378325693,1754826639965,-460.0,0.0002096,2]
[378325695,1754826639975,-460.0,0.0002096,2]
[378325697,1754826639985,-460.0,0.00021061,2]
[378325699,1754826639995,-460.0,0.00021061,2]
[378325701,1754826640004,-460.0,0.00021061,2]
[378325703,1754826640013,-460.0,0.00021061,2]
[378325704,1754826640023,-1527.07,0.00021061,2]
[378325705,1754826640033,-460.0,0.00021061,2]
[378325706,1754826640042,-460.0,0.00021061,2]
[378325707,1754826640051,-572.58,0.00021061,2]
[378325708,1754826640060,-460.0,0.00021061,2]
[378325709,1754826640069,-674.71,0.00021061,2]
[378325710,1754826640079,-625.12,0.00021094,2]
[378325711,1754826640088,-1226.98,0.00021094,2]
[378325712,1754826640098,-460.0,0.00021094,2]
[378325713,1754826640107,-460.0,0.00021094,2]
[378325714,1754826640116,-460.0,0.00021158,2]
[378325715,1754826640125,-617.43,0.0002116,2]
[378325716,1754826640134,-460.0,0.00021161,2]
[378325717,1754826640144,-460.0,0.00021161,2]
[378325718,1754826640154,-460.0,0.00021161,2]
[378325719,1754826640163,-460.0,0.00021161,2]
[378325720,1754826640172,-956.73,0.00021161,2]
[378325721,1754826640182,-460.0,0.00021161,2]
[378325722,1754826640191,-259.36694017,0.00021161,2]
[378325723,1754826640201,-1000.0,0.00021221,2]
[378325724,1754826640211,-732.45,0.00021225,2]
[378325725,1754826640220,-788.2,0.00021225,2]
[378325726,1754826640229,-540.2,0.00021234,2]
[378325727,1754826640239,-460.0,0.00021234,2]
[378325728,1754826640248,-460.0,0.00021234,2]
[378325729,1754826640257,-460.0,0.00021234,2]
[378325730,1754826640267,-472.09,0.00021234,2]
[378325731,1754826640277,-460.0,0.00021234,2]
[378325732,1754826640286,-460.37,0.00021234,2]
[378325733,1754826640296,-460.0,0.00021234,2]
[378325734,1754826640305,-460.0,0.00021234,2]
[378325735,1754826640315,-460.0,0.00021234,2]
[378325736,1754826640324,-536.38,0.00021335,2]
[378325737,1754826640334,-1527.07,0.00021335,2]
[378325738,1754826640343,-460.0,0.00021335,2]
[378325739,1754826640353,-674.71,0.00021335,2]
[378325740,1754826640362,-625.12,0.00021368,2]
[378325741,1754826640371,-1226.98,0.00021368,2]
[378325742,1754826640380,-460.0,0.00021368,2]
[378325743,1754826640391,-460.0,0.00021368,2]
[378325744,1754826640400,-460.0,0.00021432,2]
[378325745,1754826640409,-617.43,0.00021434,2]
[378325746,1754826640419,-460.0,0.00021435,2]
[378325747,1754826640431,-460.0,0.00021435,2]
[378325748,1754826640450,-956.73,0.00021435,2]
[378325749,1754826640459,-460.0,0.00021435,2]
[378325750,1754826640468,-200.68,0.00021468,2]
[378325751,1754826640478,-732.45,0.00021499,2]
[378325752,1754826640487,-788.2,0.00021499,2]
[378325753,1754826640497,-540.2,0.00021508,2]
[378325754,1754826640507,-460.0,0.00021508,2]
[378325755,1754826640516,-460.0,0.00021508,2]
[378325756,1754826640526,-460.0,0.00021508,2]
[378325757,1754826640535,-460.0,0.00021508,2]
[378325758,1754826640545,-460.37,0.00021508,2]
[378325759,1754826640555,-460.0,0.00021508,2]
[378325760,1754826640564,-460.0,0.00021508,2]
[378325761,1754826640573,-398.98,0.00021508,2]
[378325762,1754826640583,-1000.0,0.00021608,2]
[378325763,1754826640592,-1527.07,0.00021609,2]
[378325764,1754826640602,-460.0,0.00021609,2]
[378325765,1754826640615,-674.71,0.00021609,2]
[378325766,1754826640625,-625.12,0.00021642,2]
[378325767,1754826640634,-1226.98,0.00021642,2]
[378325768,1754826640643,-460.0,0.00021642,2]
[378325769,1754826640655,-460.0,0.00021642,2]
[378325770,1754826640664,-4294.63627302,0.00021655,2]
[378325771,1754826640673,-493.74,0.00021706,2]
[378325772,1754826640683,-617.43,0.00021708,2]
[378325773,1754826640693,-460.0,0.00021709,2]
[378325774,1754826640703,-460.0,0.00021709,2]
[378325775,1754826640713,-956.73,0.00021709,2]
[378325776,1754826640722,-460.0,0.00021709,2]
[378325777,1754826640732,-1500.0,0.00021768,2]
[378325778,1754826640741,-732.45,0.00021773,2]
[378325779,1754826640751,-788.2,0.00021773,2]
[378325780,1754826640760,-540.2,0.00021782,2]
[378325781,1754826640770,-460.0,0.00021782,2]
[378325782,1754826640785,-460.0,0.00021782,2]
[378325783,1754826640799,-460.0,0.00021782,2]
[378325784,1754826640810,-467.18,0.00021782,2]
[378325785,1754826640819,-460.37,0.00021782,2]
[378325786,1754826640829,-460.0,0.00021782,2]
[378325787,1754826640839,-1527.07,0.00021883,2]
[378325788,1754826640849,-460.0,0.00021883,2]
[378325789,1754826640858,-674.71,0.00021883,2]
[378325790,1754826640868,-625.12,0.00021916,2]
[378325791,1754826640878,-1226.98,0.00021916,2]
[378325792,1754826640888,-460.0,0.00021916,2]
[378325793,1754826640898,-460.0,0.00021916,2]
[378325794,1754826640908,-500.0,0.00021917,2]
[378325795,1754826640918,-4452.23,0.00021917,2]
[378325796,1754826640927,-617.43,0.00021982,2]
[378325797,1754826640938,-460.0,0.00021983,2]
[378325798,1754826640949,-460.0,0.00021983,2]
[378325799,1754826640959,-956.73,0.00021983,2]
[378325800,1754826640968,-460.0,0.00021983,2]
[378325801,1754826640978,-859.83,0.00022,2]
[378325802,1754826640988,-172.0,0.00022,2]
[378325803,1754826640998,-732.45,0.00022047,2]
[378325804,1754826641009,-788.2,0.00022047,2]
[378325805,1754826641020,-2883.74,0.00022048,3]
[378325806,1754826641031,-1441.86,0.00022048,3]
[378325807,1754826641040,-720.94,0.00022048,3]
[378325808,1754826641050,-360.46,0.00022048,3]
[378325809,1754826641060,-540.2,0.00022056,2]
[378325810,1754826641069,-460.0,0.00022056,2]
[378325811,1754826641079,-460.0,0.00022056,2]
[378325812,1754826641090,-460.0,0.00022056,2]
[378325813,1754826641100,-460.37,0.00022056,2]
[378325814,1754826641110,-460.0,0.00022056,2]
[378325815,1754826641120,-160.0,0.000221,2]
[378325816,1754826641130,-160.0,0.000221,2]
[378325817,1754826641141,-160.0,0.000221,2]
[378325818,1754826641152,-160.0,0.000221,2]
[378325819,1754826641163,-160.0,0.00022103,2]